Cogmind - Beta 14 *** ADVENTURER MODE // 2024.11.25 @ 00:04:33 Player: Banditoz Result: Destroyed by as-35480 with Assembled Heavy Rifle Performance ------------- Evolutions (1) 500 Regions Visited (3) 600 Robots Destroyed (30) 150 Value Destroyed (788) 788 Prototype IDs (3) 60 Alien Tech Used (0) 0 Bonus (-38) -38 TOTAL SCORE: 2060 Bonus ------- Friendly Fire -38 Cogmind --------- Core Integrity 0/400 Matter 238/300 Energy 280/280 System Corruption 0% Temperature Cool (0) Movement Rolling (95) Ox1 Location -9/Mines Parts ------- > --- POWER (2) -------- Heavy Ion Engine > --- PROPULSION (2) --- Wheel > --- UTILITY (2) ------ (None) > --- WEAPON (3) ------- Improved Assault Rifle > --- INVENTORY (5) ---- (None) Peak State ------------ > --- POWER ------------ Light Ion Engine Improved Ion Engine > --- PROPULSION ------- Light Treads Aluminum Leg > --- UTILITY ---------- Weapon Shielding Shield Generator > --- WEAPON ----------- Medium Laser Beam Cannon Beam Cannon > --- INVENTORY -------- Light Ion Engine Light Treads Wheel Small Laser [Rating: 11] Favorites ----------- Power Light Ion Engine Engine Light Ion Engine Propulsion Light Treads Treads Light Treads Leg Aluminum Leg Wheel Wheel Utility Weapon Shielding Device Shield Generator Storage Small Storage Unit Protection Weapon Shielding Weapon Beam Cannon Energy Gun Small Laser Energy Cannon Beam Cannon Ballistic Gun Improved Assault Rifle Launcher Grenade Launcher Build | -11 -10 -9 -9 ------- Run | Yrd Mat Mat Min Slots Evolved 2 | . . 2 . Power 1 | . . 1 . Propulsion . | . . . . Utility . | . . . . Weapon 1 | . . 1 . Parts Attached 25 | 6 4 15 . Power 4 | 1 . 3 . Engine 4 | 1 . 3 . Core . | . . . . Reactor . | . . . . Propulsion 6 | 2 . 4 . Treads 2 | 1 . 1 . Leg 3 | 1 . 2 . Wheel 1 | . . 1 . Hover . | . . . . Flight . | . . . . Utility 5 | 1 2 2 . Device 1 | . . 1 . Storage 2 | 1 1 . . Processor . | . . . . Hackware . | . . . . Protection 2 | . 1 1 . Artifact . | . . . . Weapon 10 | 2 2 6 . Energy Gun 6 | 2 1 3 . Energy Cannon 2 | . 1 1 . Ballistic Gun 1 | . . 1 . Ballistic Cannon . | . . . . Launcher 1 | . . 1 . Special Weapon . | . . . . Impact Weapon . | . . . . Slashing Weapon . | . . . . Piercing Weapon . | . . . . Special Melee Weapon . | . . . . Unidentified Prototypes 1 | . . 1 . Parts Lost 12 | . . 10 2 Power 3 | . . 3 . Propulsion 1 | . . 1 . Utility 2 | . . 2 . Weapon 6 | . . 4 2 Highest Loss Streak 8 | . . 8 2 To Critical Strikes . | . . . . Average Slot Usage (%) 80 | . 89 77 41 Engine 12 | . 14 11 11 Treads 10 | . 14 8 . Leg 10 | . 14 9 . Wheel 1 | . . 1 11 Device 3 | . . 6 . Storage 4 | . 11 . . Protection 8 | . 6 10 . Energy Gun 12 | . 15 10 4 Energy Cannon 14 | . 12 17 . Peak Build Rating 11 | 6 7 11 9 Average Rating 7 | 4 6 9 7 On Entrance 5 | . 6 6 9 Naked Turns 3 | . . 3 . Heaviest Build 89 | 10 89 21 15 Greatest Support 20 | 10 10 20 10 Greatest Overweight (x) 8 | . 8 4 1 Average Overweight (x) . | . . . 1 Largest Inventory Capacity 25 | 8 25 5 5 Average Capacity 6 | 6 7 5 5 Most Carried 8 | 6 8 5 . Average Carried 4 | 2 6 3 . Final Capacity 8 | 8 5 5 5 Final Carried 6 | 6 5 . . Class Distribution -------------------- 64% | Mutant 31% | Tank 4% | Gunner Dominant Class ---------------- Mutant | -10/Materials Tank | -9/Materials Mutant | -9/Mines Resources | -11 -10 -9 -9 ----------- Run | Yrd Mat Mat Min Matter Collected 562 | 186 84 288 4 Remotely . | . . . . Salvage Created 1040 | . 127 876 37 Parts 54 | . 7 47 . Haulers Intercepted 1 | . . 1 . Recyclers Shooed 1 | . . 1 . Parts Field Recycled . | . . . . Retrieved Matter . | . . . . Parts Self-Destructed . | . . . . Prevented . | . . . . Kills | -11 -10 -9 -9 ------- Run | Yrd Mat Mat Min Combat Hostiles Destroyed 31 | . 5 18 8 Guns 9 | . 3 2 4 Cannons 11 | . 1 10 . AOE 8 | . . 4 4 Classes Destroyed 9 | . 2 6 1 Worker 2 | . . 2 . Hauler 1 | . . 1 . Recycler 1 | . . 1 . Watcher 3 | . . 3 . Swarmer 6 | . 3 3 . Grunt 10 | . 2 8 . Brawler 2 | . . 2 . Sentry 5 | . . 5 . Assembled 8 | . . . 8 Best Kill Streak 8 | . 3 6 8 Combat Bots Only 8 | . 3 5 8 Max Kills in Single Turn 3 | . 1 2 3 Gunslinging . | . . . . Exploded 3 | . . 1 3 Melee . | . . . . Uniques/NPCs Destroyed . | . . . . Combat | -11 -10 -9 -9 -------- Run | Yrd Mat Mat Min Hostile Shots Fired 204 | . 47 142 15 Missed 49 | . 10 36 3 Damage Taken 1472 | . 250 1040 182 Core 441 | . 31 373 37 Absorbed by Shields 105 | . . 105 . Redirected to Shielding 50 | . . 50 . Ignored by Resistances 433 | . 82 299 52 Core Remaining (%) 93 | 100 87 . . Volleys Fired 95 | . 23 60 12 Largest 3 | . 2 3 3 Hottest 170 | . 110 170 93 Shots Fired 198 | . 46 133 19 Gun 77 | . 23 39 15 Cannon 111 | . 23 88 . Launcher 10 | . . 6 4 Special . | . . . . Kinetic 12 | . . . 12 Thermal 176 | . 46 127 3 Explosive 10 | . . 6 4 Electromagnetic . | . . . . Robot Hit Streak 35 | . 5 35 8 Robot Miss Streak 4 | . 4 3 1 Penetration Max . | . . . . Secondary Targets . | . . . . Shots Hit Robots 132 | . 26 93 13 Core Hits 66 | . 6 42 18 Critical Kills 2 | . . 1 1 Critical Parts Destroyed . | . . . . Critical Strikes 3 | . . 2 1 Burn 1 | . . 1 . Meltdown 1 | . . 1 . Destroy 1 | . . . 1 Melee Attacks . | . . . . Impact . | . . . . Slashing . | . . . . Piercing . | . . . . Sneak Attacks . | . . . . Combat Hostiles . | . . . . Follow-up Attacks . | . . . . Damage Inflicted 2446 | . 325 1612 509 Guns 587 | . 115 315 157 Cannons 1203 | . 210 993 . Explosions 632 | . . 280 352 Melee . | . . . . Ramming 24 | . . 24 . Kinetic 136 | . . . 136 Thermal 1654 | . 325 1308 21 Explosive 632 | . . 280 352 Electromagnetic . | . . . . Impact . | . . . . Slashing . | . . . . Piercing . | . . . . Highest Corruption 1 | . 1 . . Average Corruption 1 | . 1 . . Corruption Purged . | . . . . Corruption Blocked . | . . . . Effects 2 | . 2 . . Energy Discharges 2 | . 2 . . Overload Shots . | . . . . Overflow Damage 21 | . 5 15 1 Projectiles 20 | . 5 15 . Explosions 1 | . . . 1 Melee . | . . . . Knockbacks . | . . . . Impact . | . . . . Kinetic . | . . . . Secondary . | . . . . Self-Inflicted Damage 19 | . . 19 . Shots 2 | . . 2 . Rammed 10 | . . 10 . Targets Rammed 10 | . . 10 . Kicked . | . . . . Crushed . | . . . . Highest Temperature 617 | . 251 617 81 Average Temperature 162 | . 85 194 42 Received Heat Transfer 484 | . 60 424 . Effects 29 | . 2 27 . Shutdowns 4 | . . 4 . Energy Bleed 3 | . . 3 . Interference 4 | . 2 2 . Matter Decay 2 | . . 2 . Short Circuit 4 | . . 4 . Damage (minor) 3 | . . 3 . Damage (major) 7 | . . 7 . Damage (core) 2 | . . 2 . Siege Activations . | . . . . Robots Corrupted . | . . . . Combat Hostiles . | . . . . Parts Fried . | . . . . Impact Corruptions . | . . . . Robots Melted 3 | . 1 2 . Combat Hostiles 3 | . 1 2 . Parts Melted 18 | . 1 17 . Heat Transferred 3723 | . 706 2967 50 Parts Sabotaged . | . . . . Parts Stolen . | . . . . Parts Stripped . | . . . . Power Chain Reactions . | . . . . Alert | -11 -10 -9 -9 ------- Run | Yrd Mat Mat Min Peak Influence 272 | . 223 272 71 Initial 56 | . . 10 56 Average 83 | . 78 96 56 Maximum Alert Level 1 | . 1 1 . Low Security (%) 90 | 100 83 94 100 Level 1 9 | . 16 5 . Level 2 . | . . . . Level 3 . | . . . . Level 4 . | . . . . Level 5 . | . . . . High Security . | . . . . Max Security . | . . . . Squads Dispatched 3 | . 1 2 . Investigation 2 | . 1 1 . Extermination . | . . . . Reinforcement 1 | . . 1 . Assault . | . . . . Garrison . | . . . . Intercept . | . . . . Searches Triggered . | . . . . Construction Impeded . | . . . . Haulers Reinforced . | . . . . Active Scanning Responses . | . . . . Cargo Convoy Interrupts . | . . . . Stealth | -11 -10 -9 -9 --------- Run | Yrd Mat Mat Min Distress Signals 2 | . . 2 . Communications Jammed . | . . . . Distress Signals . | . . . . Times Spotted 52 | . 13 27 12 Peak Tracking Total 9 | . 5 6 9 Tactical Retreats 6 | . 3 1 2 Traps | -11 -10 -9 -9 ------- Run | Yrd Mat Mat Min Traps Triggered 2 | . 1 1 . Indirectly . | . . . . Trap Hack Attempts . | . . . . Triggered . | . . . . Disarmed . | . . . . Reprogrammed . | . . . . Reused . | . . . . Traps Extracted . | . . . . Installed . | . . . . Triggered . | . . . . Machines | -11 -10 -9 -9 ---------- Run | Yrd Mat Mat Min Machines Disabled 2 | . 1 1 . Max in Single Turn 1 | . 1 1 . Machines Repaired . | . . . . Machines Dismantled . | . . . . Machines Sabotaged . | . . . . Overloaded Fab Kills . | . . . . Hacking | -11 -10 -9 -9 --------- Run | Yrd Mat Mat Min Machines Accessed 10 | . 4 6 . Terminals 9 | . 4 5 . Fabricators . | . . . . Repair Stations . | . . . . Recycling Units . | . . . . Scanalyzers 1 | . . 1 . Garrison Access . | . . . . Total Hacks 24 | . 12 12 . Successful 19 | . 11 8 . Failed 5 | . 1 4 . Catastrophic . | . . . . Database Lockouts . | . . . . Manual . | . . . . Terminals 22 | . 12 10 . Fabricators . | . . . . Repair Stations . | . . . . Recycling Units . | . . . . Scanalyzers 2 | . . 2 . Garrison Access . | . . . . Terminal Hacks 17 | . 11 6 . Record 5 | . 5 . . Prototype ID Bank 1 | . . 1 . Emergency Access Points 2 | . 1 1 . Scanalyzer Index 1 | . . 1 . Alert Level 2 | . 2 . . Locate Traps 1 | . 1 . . Dispatch Records 1 | . . 1 . Maintenance Status 1 | . . 1 . Registered Components 1 | . 1 . . Zone Layout 2 | . 1 1 . Fabricator Hacks . | . . . . Repair Station Hacks . | . . . . Recycling Unit Hacks . | . . . . Scanalyzer 2 | . . 2 . Insert Component 1 | . . 1 . Analyze 1 | . . 1 . Garrison Access Hacks . | . . . . Unauthorized Hacks . | . . . . Terminals . | . . . . Fabricators . | . . . . Repair Stations . | . . . . Recycling Units . | . . . . Scanalyzers . | . . . . Garrison Access . | . . . . Data Cores Recovered . | . . . . Used . | . . . . Hacking Detections 4 | . 1 3 . Full Trace Events 1 | . 1 . . Feedback Events . | . . . . Feedback Blocked . | . . . . Robot Schematics Acquired . | . . . . Robots Built . | . . . . Authchips . | . . . . Time . | . . . . Total Robot Build Rating . | . . . . Part Schematics Acquired 1 | . . 1 . Parts Built . | . . . . Authchips . | . . . . Time . | . . . . Total Part Build Rating . | . . . . Parts Repaired . | . . . . Time . | . . . . Parts Recycled . | . . . . Recycled Matter . | . . . . Retrieved Matter . | . . . . Retrieved Components . | . . . . Parts Scanalyzed 1 | . . 1 . Part Schematics Acquired 1 | . . 1 . Parts Damaged . | . . . . Bothacking | -11 -10 -9 -9 ------------ Run | Yrd Mat Mat Min Used RIF Installer . | . . . . Robots Hacked . | . . . . Non-combat . | . . . . Combat . | . . . . Robot Hacks Applied . | . . . . Relay Couplers Released . | . . . . Fabnet Peak Effective % . | . . . . Robots Rewired . | . . . . Allies Hacked . | . . . . Hacks Repelled . | . . . . Allies | -11 -10 -9 -9 -------- Run | Yrd Mat Mat Min Total Allies . | . . . . Largest Group . | . . . . Highest-Rated Group . | . . . . Highest-Rated Ally . | . . . . Total Orders . | . . . . Ally Attacks . | . . . . Total Damage . | . . . . Kills . | . . . . Allies Corrupted . | . . . . Allies Melted . | . . . . Intel | -11 -10 -9 -9 ------- Run | Yrd Mat Mat Min Robot Analysis Total . | . . . . Derelict Logs Recovered . | . . . . Drone Launches . | . . . . Drone Recoveries . | . . . . Exploration | -11 -10 -9 -9 ------------- Run | Yrd Mat Mat Min Turns Passed 1875 | 96 708 1020 51 Spaces Moved 1019 | 76 388 531 24 Core 75 | 18 6 51 . Treads 254 | . . 254 . Legs 554 | 58 382 114 . Wheels 136 | . . 112 24 Hover . | . . . . Flight . | . . . . Fastest Speed 50 | 50 120 50 95 Average Speed 150 | 103 161 151 95 Slowest Speed 680 | 120 680 260 95 Overloaded Moves . | . . . . Propulsion Burnouts . | . . . . Robots Hopped . | . . . . Cave-ins Triggered . | . . . . Exploration Rate (%) 30 | 4 49 59 9 Regions Visited 3 Branch Regions 1 Pre-discovered Areas . | . . . . Known Exits Taken . | . . . . Unknown Exits Taken 3 | 1 1 1 . Scrap Searched . | . . . . Spaces Dug . | . . . . Terrain Destroyed 52 | . . 31 21 Melee . | . . . . Projectile . | . . . . AOE 52 | . . 31 21 Terrain Rammed . | . . . . Walls Destroyed . | . . . . Machines Disabled . | . . . . Actions | -11 -10 -9 -9 --------- Run | Yrd Mat Mat Min Total 1184 | 93 426 629 36 Wait 7 | . 5 2 . Move 1016 | 75 387 530 24 Hop . | . . . . Pick Up 21 | 12 3 6 . Fast Attach 4 | . . 4 . Attach 19 | 6 2 11 . Detach 1 | . 1 . . Swap 2 | . 2 . . Drop 9 | . 3 6 . Fire 95 | . 23 60 12 Melee . | . . . . Ram 10 | . . 10 . Kick . | . . . . Crush . | . . . . Escape Stasis . | . . . . Rewire . | . . . . Trap . | . . . . Miscellaneous . | . . . . Route ------- -11/Scrapyard -10/Materials (discovered 3 exits: *Mat / [*Min x2]) -9/Materials (discovered 3 exits: [*Mat] / [*Min] / [*Sto]) -9/Mines History --------- Turn | Location | Event 5 | -11/Scrapyard | Discovered new exit (range 14) 97 | -11/Scrapyard | Entered Materials 314 | -10/Materials | Build established: Mutant 327 | -10/Materials | Discovered new exit (range 15) 471 | -10/Materials | Discovered new exit (range 15) 774 | -10/Materials | Discovered new exit (range 9) 805 | -10/Materials | Entered another Materials area 805 | -9/Materials | Evolved 2 slots: Power x1, Weapon x1 1045 | -9/Materials | Discovered new exit (range 16) 1238 | -9/Materials | Discovered new exit (range 16) 1309 | -9/Materials | Discovered new exit (range 15) 1527 | -9/Materials | Build established: Tank 1664 | -9/Materials | Core integrity fell below 50% 1696 | -9/Materials | Core integrity fell below 20% 1723 | -9/Materials | Lost 8 parts (2p1n1u4w) 1825 | -9/Materials | Entered Mines 1826 | -9/Mines | Assembled infested the area 1831 | -9/Mines | Assisted by a Guerilla fighting off Assembled 1854 | -9/Mines | Met a Derelict bent on vengeance 1876 | -9/Mines | Destroyed by as-35480 with Assembled Heavy Rifle Last Messages --------------- coming from, and they're closing on this area, come on!" 01833_ CC-1U0(h): "I'll hold them off! Go on ahead or try to find another way!" 01838_ as-92815 destroyed. 01841_ Destroyed Asb. Hover Unit. 01841_ CC-1U0(h) system corrupted by crushing effect. 01841_ CC-1U0(h) destroyed. 01844_ as-48629 destroyed. 01844_ as-76031 destroyed. 01845_ Sml. Laser destroyed. 01848_ as-65939 destroyed. 01848_ as-32837 destroyed. 01848_ as-52899 destroyed. 01848_ Grenade Launcher destroyed. 01853_ as-30830 destroyed. 01857_ as-53990 suffers critical hit (Destroy). 01857_ as-53990 destroyed. 01859_ Acquired 4 matter. Map ----- +----------------------------------------------------+ | | | | | | | | | | | | | | | | | | | | | | | | | | | | | | | | | | | | | ?????????????????????????????????????? | | ??????????#######????????????????????? | | ?????????## #??????####?????????? | | ????????## ####### ##????????? | | ????????? ######???? | | ??????????????# ##??? | | ??????????????## #??? | | ??????????????# @ #???? | | ??????? !%! ##???? | | ??????? a =% ## #????? | | ???????###### ?##### #????? | | ????????????# ?????## ##????? | | ????????????# #???????###?????? | | ???????????# ????????????????? | | ???????????### #????????????????? | | ?????????????# ** ????????????????? | | ?????????????## ????????????????? | | ??????????????#### ????????????????? | | ?????????????????## ????????????????? | | ??????????????????? ????????????????? | | ???????????????????# ????????????????? | | ???????????????????? ????????????????? | | ?????????????????????????????????????? | | ?????????????????????????????????????? | | ?????????????????????????????????????? | | ?????????????????????????????????????? | | ?????????????????????????????????????? | | ?????????????????????????????????????? | | ?????????????????????????????????????? | | ?????????????????????????????????????? | | ?????????????????????????????????????? | | ?????????????????????????????????????? | +----------------------------------------------------+ Best States ------------- Heat Dissipation 28 Energy Generation 17 Energy Capacity 290 Matter Stores 300 Matter Capacity 300 Sight Range 16 Terrain Scan Density 10 Resistance: KI 20 Resistance: TH 20 Resistance: EX 20 Resistance: EM 20 Resistance: I 20 Resistance: S 20 Resistance: P 20 Propulsion Shielding 33 Weapon Shielding 33 Evasion (%) 55 Recoil Reduction 1 Offensive Hacking 10 Item Schematics ----------------- Wheel | -9/Materials | Scanalyzed Robot Schematics ------------------ None Fabricated ------------ Nothing Alien Tech Used ----------------- None Achievements -------------- It's Just You Challenges ------------ None Game ------ Seed JunkTargetingDrive Manual? 0 Play Time 00:22:32 Cumulative 5.8 hours Start 2024.11.24 @ 23:41:18 End 2024.11.25 @ 00:04:33 Sessions 1 Manual Loads 0 Difficulty Adventurer Special Mode None Game No. 20 Rogue 17 Adventurer 3 Explorer 0 Win Type - Total 0 Types 0/0/0/0/0/0/0/0/0 Lore% 1 Gallery% 8 Achievement% 8 Wizard Run 0 Options --------- Layout 1 ASCII 0 Keyboard 0 Movement Numpad Keybinds 0 Fullscreen 2 Font 32/SmallcapsGlow Map View 50x35 Zoom Use 0% Tactical HUD 1 Map Filters NONE Filters NONE Steam 1 RUN: 7ea1c878-44cf-4e48-b135-e07b0c815518